bitfinex/quotes_SOLUSD_20220117
["timestamp","ask_amount","ask_price","bid_price","bid_amount"]
[1642436250241,8.44,140.54,140.51,0.25]
[1642436250438,6.06439994,140.53,140.51,0.25]
[1642436250640,10.4548166,140.57,140.5,50.0]
[1642436251039,10.4548166,140.57,140.51,36.02617392]
[1642436251241,8.44,140.57,140.51,36.27617392]
[1642436252845,10.4548166,140.6,140.52,1.75619958]
[1642436253041,2.0148166,140.6,140.52,1.75619958]
[1642436253240,2.0148166,140.6,140.53,0.25]
[1642436253842,2.0148166,140.6,140.52,10.6695]
[1642436254042,2.0148166,140.6,140.53,0.25]
[1642436254244,10.4548166,140.65,140.53,0.25]
[1642436254943,10.4548166,140.65,140.52,81.0295]
[1642436255143,118.50854278,140.64,140.52,10.6695]
[1642436255344,21.1250166,140.63,140.51,36.02617392]
[1642436256344,27.1250166,140.63,140.51,46.69677392]
[1642436256544,2.0148166,140.62,140.51,46.69677392]
[1642436257044,2.0148166,140.62,140.52,72.11619958]
[1642436257247,2.0148166,140.62,140.55,10.6674]
[1642436257445,2.0148166,140.63,140.55,16.4524]
[1642436257644,2.0148166,140.63,140.56,0.25]
[1642436257844,2.0148166,140.63,140.56,105.42620912]
[1642436258445,2.0148166,140.65,140.56,105.42620912]
[1642436259445,37.23871081,140.66,140.56,105.42620912]
[1642436259649,37.23871081,140.66,140.56,115.84310912]
[1642436260152,37.23871081,140.66,140.56,45.48310912]
[1642436260350,2.0148166,140.65,140.56,34.81620912]
[1642436260750,2.0148166,140.65,140.57,0.25]
[1642436262071,12.6837166,140.65,140.57,0.25]
[1642436262474,2.0148166,140.65,140.57,0.25]
[1642436264074,2.0148166,140.66,140.57,10.9159]
[1642436264877,49.19079866,140.66,140.58,70.36]
[1642436265179,47.17598206,140.66,140.59,46.16421714]
[1642436265376,47.17598206,140.66,140.59,46.41421714]
[1642436265579,47.17598206,140.66,140.59,0.25]
[1642436265979,2.0148166,140.68,140.59,0.25]
[1642436266179,2.0148166,140.67,140.59,10.9148]
[1642436266778,2.0148166,140.67,140.6,70.36]
[1642436266979,2.0148166,140.67,140.62,70.36]
[1642436267178,2.0148166,140.68,140.62,70.36]
[1642436267378,2.0148166,140.68,140.63,0.25]
[1642436268279,2.0148166,140.68,140.62,0.25]
[1642436268879,2.0148166,140.69,140.62,0.25]
[1642436269181,38.32417986,140.68,140.62,0.25]
[1642436269382,38.32417986,140.68,140.59,70.36]
[1642436269580,46.76417986,140.68,140.58,47.6475]
[1642436269780,52.76417986,140.68,140.59,0.25]
[1642436269980,52.76417986,140.68,140.53,83.3295]
[1642436270390,52.76417986,140.68,140.54,35.38742467]
[1642436270580,63.43057986,140.68,140.54,105.74742467]
[1642436270783,63.43057986,140.68,140.54,43.82742467]
[1642436270984,76.47147048,140.68,140.54,35.38742467]
[1642436271184,2.0148166,140.66,140.54,35.38742467]
[1642436271386,38.33026437,140.65,140.54,35.38742467]
[1642436271585,10.6698,140.64,140.54,35.38742467]
[1642436271784,16.6698,140.64,140.51,48.4813]
[1642436272185,8.69,140.63,140.5,50.0]
[1642436272384,14.69,140.63,140.5,50.0]
[1642436272588,24.04544103,140.63,140.5,50.0]
[1642436272990,10.6728,140.6,140.5,50.0]
[1642436273186,48.87470493,140.59,140.5,50.0]
[1642436273395,57.31470493,140.59,140.51,45.65117521]
[1642436273889,10.6752,140.57,140.51,45.65117521]
[1642436274089,8.44,140.59,140.51,45.65117521]
[1642436274287,2.0148166,140.6,140.51,45.65117521]
[1642436274686,2.0148166,140.6,140.52,0.25]
[1642436275491,10.6721,140.61,140.52,0.25]
[1642436275689,2.0148166,140.62,140.52,0.25]
[1642436275993,2.0148166,140.62,140.52,70.61]
[1642436276489,2.0148166,140.63,140.52,70.61]
[1642436276689,37.84774408,140.63,140.52,83.03449958]
[1642436276889,2.0148166,140.63,140.52,91.47449958]
[1642436277290,2.0148166,140.63,140.52,97.73449958]
[1642436277890,2.0148166,140.64,140.52,97.73449958]
[1642436278893,2.0148166,140.64,140.52,106.42949958]
[1642436279191,43.77451965,140.66,140.52,106.42949958]
[1642436279392,2.0148166,140.66,140.52,129.34759958]
[1642436280195,2.0148166,140.67,140.52,129.34759958]
[1642436280394,44.28642635,140.67,140.57,10.664]
[1642436280598,44.28642635,140.67,140.58,43.82166467]
[1642436280792,2.0148166,140.67,140.59,70.36]
[1642436280992,2.0148166,140.67,140.59,76.817]
[1642436281195,2.0148166,140.67,140.6,0.25]
[1642436281396,2.0148166,140.67,140.61,8.44]
[1642436281797,40.252039,140.67,140.62,0.25]
[1642436281998,40.252039,140.67,140.58,10.19619958]
[1642436282195,40.252039,140.67,140.58,8.44]
[1642436282597,48.2668556,140.67,140.58,8.44]
[1642436282796,58.9340556,140.67,140.54,8.44]
[1642436282995,58.9340556,140.67,140.54,78.8]
[1642436283494,58.9340556,140.67,140.53,24.4921]
[1642436283495,10.19619958,140.66,140.52,1.73503745]
[1642436283697,2.0148166,140.65,140.51,47.3312]
[1642436283997,54.1478683,140.64,140.51,94.83755785]
[1642436284198,55.90406788,140.64,140.51,94.83755785]
[1642436284798,2.0148166,140.61,140.52,0.25]
[1642436285000,12.6868166,140.61,140.52,0.25]
[1642436285200,12.6868166,140.61,140.51,0.25]
[1642436285803,39.2819046,140.6,140.51,0.25]
[1642436286001,2.0148166,140.59,140.51,0.25]
[1642436286703,2.0148166,140.59,140.5,120.36]
[1642436287425,2.0148166,140.59,140.5,50.0]
[1642436287825,12.6879166,140.59,140.5,50.0]
[1642436288025,12.6879166,140.59,140.51,39.22391619]
[1642436288227,18.6879166,140.59,140.51,39.22391619]
[1642436288427,2.0148166,140.59,140.51,39.22391619]
[1642436288625,2.0148166,140.59,140.52,70.36]
[1642436288925,2.0148166,140.59,140.51,39.22391619]
[1642436289327,2.0148166,140.59,140.52,0.25]
[1642436290429,2.0148166,140.62,140.52,8.69]
[1642436290631,2.0148166,140.62,140.52,18.47219958]
[1642436290829,2.0148166,140.62,140.52,24.73219958]
[1642436291427,46.61594675,140.61,140.52,24.73219958]
[1642436291630,46.61594675,140.61,140.53,47.0543]
[1642436291829,46.61594675,140.61,140.55,70.36]
[1642436292029,46.61594675,140.61,140.54,8.69]
[1642436292328,46.61594675,140.61,140.54,6.25]
[1642436292529,46.61594675,140.61,140.51,46.5141]
[1642436293631,46.61594675,140.61,140.5,51.73503745]
[1642436293831,2.0148166,140.6,140.5,50.0]
[1642436294832,2.0148166,140.59,140.51,70.36]
[1642436295033,2.0148166,140.59,140.52,8.44]
[1642436295434,1.66e-05,140.59,140.53,0.25]
[1642436295633,1.66e-05,140.59,140.54,8.44]
[1642436295833,48.78035067,140.64,140.55,70.61]
[1642436296034,48.78035067,140.64,140.55,79.05]
[1642436296237,48.78035067,140.64,140.55,0.25]
[1642436296435,48.78035067,140.64,140.52,23.232]
[1642436296635,48.78035067,140.64,140.54,0.25]
[1642436296835,58.97655025,140.64,140.54,0.25]
[1642436297436,69.64585025,140.64,140.5,50.0]
[1642436297636,0.25,140.63,140.5,50.0]
[1642436297836,8.44,140.62,140.5,50.0]
[1642436298036,10.19619958,140.62,140.5,50.0]
[1642436298238,16.19619958,140.62,140.5,50.0]
[1642436298537,38.81245626,140.61,140.51,49.04580096]
[1642436299442,12.48209974,140.63,140.51,49.04580096]
[1642436299640,4.04209974,140.63,140.51,49.04580096]
[1642436299843,4.04209974,140.63,140.52,8.69]
[1642436300043,10.04209974,140.63,140.52,8.69]
[1642436300244,45.62803558,140.66,140.52,15.581]
[1642436300444,4.04209974,140.66,140.52,15.581]
[1642436300647,4.04209974,140.66,140.52,17.33719958]
[1642436301143,4.04209974,140.66,140.52,23.33719958]
[1642436301353,4.04209974,140.68,140.52,23.33719958]
[1642436301544,4.04209974,140.68,140.55,10.6654]
[1642436301745,4.04209974,140.68,140.56,79.05]
[1642436302347,4.04209974,140.68,140.56,85.31]
[1642436302547,43.06879779,140.7,140.57,34.44025564]
[1642436302747,43.06879779,140.7,140.57,90.58065564]
[1642436302949,43.06879779,140.7,140.58,0.25]
[1642436303248,43.06879779,140.7,140.58,6.105]
[1642436303649,4.04209974,140.7,140.58,12.365]
[1642436303850,4.04209974,140.7,140.59,8.44]
[1642436304049,4.04209974,140.72,140.6,70.36]
[1642436304250,4.04209974,140.72,140.6,99.4266]
[1642436304451,4.04209974,140.72,140.6,99.1666]
[1642436304652,48.17460042,140.72,140.61,36.11738886]
[1642436304850,4.04209974,140.72,140.62,0.25]
[1642436305249,10.4555,140.76,140.62,0.25]
[1642436305250,8.07088002,140.74,140.62,2.00619958]
[1642436305448,8.07088002,140.74,140.63,8.44]
[1642436305877,53.47947339,140.74,140.65,70.36]
[1642436306079,53.47947339,140.74,140.65,78.8]
[1642436306278,53.47947339,140.74,140.66,0.25]
[1642436306478,53.47947339,140.74,140.67,8.44]
[1642436306678,49.45069311,140.74,140.67,51.2976306]
[1642436306878,45.40859337,140.74,140.68,0.25]
[1642436307480,45.40859337,140.74,140.64,8.44]
[1642436307681,47.16479295,140.74,140.58,72.0856]
[1642436307881,0.3009571,140.72,140.55,1.75619958]
[1642436308082,0.3009571,140.72,140.5,50.0]
[1642436308083,10.6679,140.67,140.5,58.44]
[1642436308282,8.69,140.66,140.5,50.0]
[1642436308482,10.44619958,140.66,140.52,3.69329123]
[1642436308881,1.75619958,140.65,140.52,3.69329123]
[1642436309083,10.6708,140.63,140.52,3.69329123]
[1642436309283,8.44,140.62,140.52,3.69329123]
[1642436309484,43.75830525,140.61,140.52,3.69329123]
[1642436309682,59.75650483,140.61,140.51,36.01451788]
[1642436310883,53.95450483,140.61,140.51,36.01451788]
[1642436311083,8.44,140.61,140.52,0.25]
[1642436311882,14.44,140.61,140.52,0.25]
[1642436312083,37.12571482,140.6,140.52,0.25]
[1642436312785,8.44,140.63,140.52,0.25]
[1642436313083,8.44,140.66,140.52,0.25]
[1642436313283,19.1083,140.66,140.52,0.25]
[1642436313783,41.77188717,140.65,140.52,36.26011611]
[1642436313983,41.77188717,140.65,140.52,44.70011611]
[1642436314183,41.77188717,140.65,140.53,70.36]
[1642436314385,41.77188717,140.65,140.54,8.69]
[1642436314784,41.77188717,140.65,140.54,70.61]
[1642436314985,41.77188717,140.65,140.54,0.25]
[1642436315186,50.21188717,140.65,140.54,0.25]
[1642436315387,60.88068717,140.65,140.51,22.7543]
[1642436315587,68.63688675,140.65,140.5,50.0]
[1642436315888,74.57388675,140.65,140.5,50.0]
[1642436316090,84.84066003,140.65,140.5,50.0]
[1642436316288,0.25,140.64,140.5,50.0]
[1642436316490,10.6749,140.6,140.5,50.0]
[1642436316892,95.04948689,140.59,140.5,50.0]
[1642436317290,101.04948689,140.59,140.5,50.0]
[1642436317691,79.0,140.56,140.44,24.0937]
[1642436317992,87.44,140.56,140.44,24.0937]
[1642436318192,71.25,140.55,140.38,13.33183983]
[1642436318392,8.44,140.54,140.38,60.93063983]
[1642436318594,55.87871433,140.54,140.38,99.54865595]
[1642436318793,2.00619958,140.53,140.38,1.1985486]
[1642436319092,35.6084,140.5,140.38,1.1985486]
[1642436319293,8.69,140.49,140.38,1.1985486]
[1642436319495,10.44619958,140.49,140.38,1.1985486]
[1642436319693,34.82409802,140.48,140.38,1.1985486]
[1642436319893,10.6842,140.45,140.38,1.1985486]
[1642436320096,36.11662785,140.44,140.38,1.1985486]
[1642436321099,36.11662785,140.44,140.33,48.14431518]
[1642436321295,36.11662785,140.44,140.33,48.39431518]
[1642436321496,44.55662785,140.44,140.33,48.39431518]
[1642436322696,8.44,140.44,140.33,59.07741518]
[1642436322895,8.44,140.5,140.33,59.33741518]
[1642436323096,6.0,140.5,140.34,70.36]
[1642436323396,6.0,140.5,140.33,56.58431518]
[1642436323598,47.71865162,140.49,140.33,56.84431518]
[1642436323896,64.39965162,140.49,140.35,10.6813]
[1642436324096,64.39965162,140.49,140.36,36.04442449]
[1642436324499,64.39965162,140.49,140.35,10.6813]
[1642436324699,74.5958512,140.49,140.35,10.6813]
[1642436324897,85.5848467,140.49,140.33,10.6825]
[1642436325297,0.25,140.48,140.33,10.6825]
[1642436325497,10.6825,140.47,140.34,47.80493095]
[1642436325698,40.37827921,140.46,140.34,47.80493095]
[1642436325897,6.0,140.47,140.35,0.25]
[1642436326098,8.44,140.51,140.38,10.6785]
[1642436326299,8.44,140.55,140.39,70.61]
[1642436326698,8.44,140.55,140.39,70.87]
[1642436326899,8.44,140.55,140.38,0.2601]
[1642436326900,148.74519508,140.54,140.38,0.2601]
[1642436327098,8.44,140.53,140.31,8.44]
[1642436327302,20.74463952,140.53,140.31,8.44]
[1642436327598,8.97289788,140.52,140.31,8.44]
[1642436327799,8.44,140.51,140.28,465.73784397]
[1642436327998,70.36,140.5,140.29,42.49112044]
[1642436328198,35.6189,140.46,140.29,42.49112044]
[1642436328398,36.92982662,140.45,140.29,42.49112044]
[1642436328599,8.44,140.44,140.29,37.49112044]
[1642436328800,0.25,140.43,140.29,37.49112044]
[1642436328999,8.44,140.42,140.29,37.49112044]
[1642436329201,10.69,140.39,140.29,37.49112044]
[1642436329401,42.71484463,140.38,140.29,37.49112044]
[1642436330008,42.71484463,140.38,140.3,0.25]
[1642436330401,10.6871,140.41,140.3,0.25]
[1642436330602,14.44,140.44,140.3,70.61]
[1642436330802,6.0,140.44,140.3,70.61]
[1642436331003,8.44,140.46,140.3,77.969]
[1642436331202,15.6566983,140.48,140.3,88.42519958]
[1642436331403,37.02517748,140.47,140.3,88.42519958]
[1642436331804,37.02517748,140.47,140.3,86.669]
[1642436332206,8.44,140.48,140.3,86.669]
[1642436332409,168.4444,140.53,140.3,88.42519958]
[1642436332607,8.44,140.52,140.3,117.27709958]
[1642436332805,14.44,140.52,140.3,117.27709958]
[1642436333008,72.11619958,140.51,140.3,115.2709]
[1642436333208,56.39956431,140.5,140.3,107.6519]
[1642436333408,58.15576389,140.5,140.3,107.6519]
[1642436333608,72.11619958,140.49,140.3,107.6519]
[1642436333809,8.44,140.48,140.3,107.6519]
[1642436334009,35.13163116,140.47,140.3,107.6519]
[1642436334210,36.88783074,140.47,140.3,107.6519]
[1642436334407,42.88783074,140.47,140.3,107.6519]
[1642436334610,10.6834,140.46,140.3,107.6519]
[1642436335211,1.75619958,140.45,140.3,107.6519]
[1642436335408,39.83794796,140.44,140.31,0.25]
[1642436335609,8.44,140.48,140.31,0.25]
[1642436335809,8.44,140.52,140.32,8.44]
[1642436336108,8.44,140.52,140.33,70.36]
[1642436336309,8.44,140.52,140.34,8.44]
[1642436336712,35.68152607,140.51,140.35,112.25296967]
[1642436336911,46.36092607,140.51,140.38,118.97153533]
[1642436337312,46.36092607,140.51,140.39,0.25]
[1642436338315,35.68152607,140.51,140.39,0.25]
[1642436338514,35.68152607,140.51,140.38,122.42153533]
[1642436338916,35.68152607,140.51,140.38,124.17773491]
[1642436339416,35.68152607,140.51,140.39,10.6782]
[1642436339644,35.68152607,140.51,140.38,122.16153533]
[1642436339815,35.68152607,140.51,140.38,57.05153533]
[1642436340320,35.94152607,140.51,140.39,0.25]
[1642436340719,46.62072607,140.51,140.39,0.25]
[1642436343025,46.62072607,140.51,140.38,48.61153533]
[1642436343222,10.6828,140.47,140.38,48.61153533]
[1642436343420,39.52151894,140.46,140.38,48.61153533]
[1642436343621,39.52151894,140.46,140.34,22.8628]
[1642436343822,39.78151894,140.46,140.34,22.8628]
[1642436344625,10.6843,140.45,140.35,40.83001926]
[1642436344822,10.6843,140.45,140.35,111.19001926]
[1642436345024,10.6843,140.45,140.35,42.58621884]
[1642436346326,10.43334254,140.45,140.35,1.75619958]
[1642436346526,10.43334254,140.45,140.32,27.54384818]
[1642436346727,10.43334254,140.45,140.32,33.54384818]
[1642436346928,0.26,140.45,140.32,33.54384818]
[1642436347163,10.6828,140.47,140.32,41.98384818]
[1642436347433,23.0357,140.56,140.32,63.87318032]
[1642436347630,4.04209974,140.54,140.33,24.6006]
[1642436347829,4.04209974,140.52,140.34,8.74099824]
[1642436348030,47.05719865,140.52,140.35,118.76053481]
[1642436348229,47.05719865,140.52,140.36,8.44]
[1642436348431,4.04209974,140.52,140.36,14.44]
[1642436348630,4.04209974,140.52,140.37,0.25]
[1642436348831,4.04209974,140.52,140.38,8.44]
[1642436349233,4.04209974,140.58,140.39,10.9267]
[1642436349432,45.77356569,140.51,140.4,78.8]
[1642436349832,46.03356569,140.51,140.41,0.25]
[1642436350031,46.03356569,140.51,140.41,10.44619958]
[1642436350231,46.03356569,140.51,140.42,41.90713337]
[1642436350635,46.03356569,140.51,140.43,0.25]
[1642436350833,0.26,140.51,140.43,0.25]
[1642436351032,12.48209974,140.59,140.43,70.61]
[1642436351233,12.48209974,140.59,140.44,1.75619958]
[1642436351432,4.04209974,140.58,140.44,1.75619958]
[1642436351633,4.04209974,140.58,140.45,0.25]
[1642436351833,10.04209974,140.58,140.45,16.639]
[1642436352037,43.48662959,140.57,140.46,43.69525619]
[1642436352434,49.48662959,140.57,140.47,0.25]
[1642436352634,49.48662959,140.57,140.43,1.75619958]
[1642436352834,49.48662959,140.57,140.44,0.25]
[1642436353034,43.74662959,140.57,140.44,0.25]
[1642436353439,43.48662959,140.57,140.44,0.25]
[1642436353635,43.48662959,140.57,140.42,107.26310194]
[1642436354236,54.16362959,140.57,140.42,107.26310194]
[1642436354438,60.16362959,140.57,140.42,107.26310194]
[1642436354665,54.16362959,140.57,140.42,107.26310194]
[1642436354836,54.16362959,140.57,140.43,2.00619958]
[1642436356344,55.91982917,140.57,140.43,0.25]
[1642436357038,0.25,140.56,140.41,10.19619958]
[1642436357239,10.6806,140.52,140.38,32.70529958]
[1642436357440,10.6806,140.52,140.38,30.9491]
[1642436357638,16.6806,140.52,140.38,30.9491]
[1642436358039,43.9378888,140.51,140.39,41.50316985]
[1642436358642,49.9378888,140.51,140.39,41.50316985]
[1642436359043,49.9378888,140.51,140.4,0.25]
[1642436360739,44.1978888,140.51,140.4,0.25]
[1642436362242,50.1978888,140.51,140.4,0.25]
[1642436362442,60.8792888,140.51,140.4,0.25]
[1642436362641,60.8792888,140.51,140.39,0.25]
[1642436362642,0.25,140.5,140.39,0.25]
[1642436362842,0.25,140.5,140.35,0.25]
[1642436363442,70.61,140.5,140.35,48.33023515]
[1642436363645,43.1967053,140.47,140.35,48.33023515]
[1642436364242,43.1967053,140.47,140.35,0.25]
[1642436365244,43.4567053,140.47,140.35,0.25]
[1642436365644,43.1967053,140.47,140.35,0.25]
[1642436366448,53.8813053,140.47,140.34,8.44]
[1642436366647,0.25,140.46,140.32,1.1985486]
[1642436367046,8.44,140.45,140.32,1.1985486]
[1642436367248,0.25,140.44,140.32,1.1985486]
[1642436367447,38.50313001,140.44,140.32,1.1985486]
[1642436367648,10.6876,140.43,140.32,1.1985486]
[1642436368050,16.6876,140.43,140.32,1.1985486]
[1642436368248,0.25,140.42,140.32,1.1985486]
[1642436368648,10.6905,140.39,140.32,1.1985486]
[1642436368850,44.30484533,140.38,140.32,1.1985486]
[1642436370477,81.0524,140.36,140.29,3.0828453]
[1642436371176,10.6924,140.36,140.29,3.0828453]
[1642436371381,43.62787373,140.35,140.29,3.0828453]
[1642436371778,43.88787373,140.35,140.29,3.0828453]
[1642436373079,86.0,140.34,140.2,12.13329123]
[1642436373279,92.0,140.34,140.2,12.13329123]
[1642436373681,92.0,140.34,140.2,8.44]
[1642436373881,0.25,140.33,140.2,8.44]
[1642436374080,0.25,140.33,140.19,3.69329123]
[1642436374279,0.25,140.33,140.2,49.01694916]
[1642436374480,10.6947,140.33,140.2,119.37694916]
[1642436374685,43.62787373,140.35,140.2,49.01694916]
[1642436375281,49.62787373,140.35,140.2,160.71694916]
[1642436375483,70.36,140.34,140.2,160.71694916]
[1642436375782,6.0,140.34,140.2,160.71694916]
[1642436376183,43.62787373,140.35,140.2,160.71694916]
[1642436376388,8.44,140.39,140.21,10.19619958]
[1642436376583,8.44,140.41,140.21,10.44619958]
[1642436376783,14.44,140.41,140.22,120.55869958]
[1642436376984,10.6862,140.44,140.27,10.687]
[1642436377182,19.1262,140.44,140.27,16.275]
[1642436377383,40.08936812,140.43,140.28,56.46289472]
[1642436377984,40.08936812,140.43,140.29,70.36]
[1642436378186,10.07281856,140.46,140.31,10.684]
[1642436378385,10.07281856,140.46,140.32,0.25]
[1642436378386,1.63281856,140.46,140.32,0.25]
[1642436378584,10.6831,140.48,140.32,0.25]
[1642436378784,474.60100501,140.49,140.32,70.61]
[1642436378986,466.16100501,140.49,140.33,8.44]
[1642436379188,44.79135774,140.48,140.34,107.07315023]
[1642436379484,44.79135774,140.48,140.34,107.32315023]
[1642436379685,57.23045732,140.48,140.27,13.38789858]
[1642436379885,70.36,140.46,140.25,47.7524]
[1642436380084,8.44,140.45,140.25,47.7524]
[1642436380285,10.19619958,140.45,140.26,3.69329123]
[1642436380486,8.44,140.45,140.26,3.69329123]
[1642436380686,55.49700022,140.44,140.27,59.91256762]
[1642436380886,8.44,140.43,140.27,59.91256762]
[1642436381087,8.44,140.43,140.28,0.25]
[1642436381289,14.44,140.43,140.28,70.61]
[1642436381489,14.44,140.43,140.28,0.25]
[1642436382088,6.0,140.43,140.28,0.25]
[1642436382289,48.80440064,140.44,140.28,8.69]
[1642436382689,48.80440064,140.44,140.32,35.57840113]
[1642436383291,49.06440064,140.44,140.32,35.57840113]
[1642436384092,68.19000064,140.44,140.32,35.57840113]
[1642436384290,70.61,140.43,140.32,35.57840113]
[1642436384490,57.24440064,140.44,140.32,35.57840113]
[1642436384690,51.24440064,140.44,140.32,35.57840113]
[1642436385092,8.44,140.44,140.32,35.57840113]
[1642436385294,553.25604003,140.52,140.32,43.04740113]
[1642436385492,553.25604003,140.52,140.33,8.44]
[1642436385493,8.44,140.51,140.33,8.44]
[1642436385692,10.6824,140.48,140.35,10.6811]
[1642436385994,48.11237362,140.47,140.36,39.61694829]
[1642436386194,48.11237362,140.47,140.36,109.97694829]
[1642436386395,48.11237362,140.47,140.36,39.61694829]
[1642436386795,48.37237362,140.47,140.36,39.61694829]
[1642436386995,48.11237362,140.47,140.36,39.61694829]
[1642436387210,48.11237362,140.47,140.36,50.29744829]
[1642436387407,8.44,140.48,140.36,50.29744829]
[1642436387705,4.04209974,140.57,140.36,67.77572806]
[1642436387903,12.48209974,140.57,140.41,0.30325956]
[1642436388104,4.04209974,140.57,140.42,8.44]
[1642436388304,4.04209974,140.57,140.45,10.6739]
[1642436388503,36.35854652,140.56,140.46,39.50811473]
[1642436388703,36.35854652,140.56,140.46,39.75811473]
[1642436389606,36.35854652,140.56,140.46,50.43201473]
[1642436391106,10.6744,140.58,140.46,50.43201473]
[1642436391308,10.6727,140.6,140.48,10.672]
[1642436391607,8.44,140.63,140.49,70.36]
[1642436391810,14.44,140.63,140.49,70.61]
[1642436392210,40.18957335,140.62,140.5,36.53351074]
[1642436392409,40.18957335,140.62,140.51,0.25]
[1642436392611,46.18957335,140.62,140.51,0.25]
[1642436393111,56.86077335,140.62,140.51,10.9204]
[1642436393912,46.18957335,140.62,140.51,10.9204]
[1642436394315,46.44957335,140.62,140.51,10.9204]
[1642436394613,46.18957335,140.62,140.51,10.9204]
[1642436395425,38.64836277,140.87,140.55,140.0]
[1642436395726,9.79200872,140.78,140.72,0.42124113]
[1642436396431,47.3076,140.89,140.72,0.42124113]
[1642436396432,43.83357173,140.81,140.72,8.86124113]
[1642436396631,43.83357173,140.81,140.72,19.51614113]
[1642436396835,43.83357173,140.81,140.73,0.25]
[1642436397035,51.0,140.79,140.68,7.86246519]
[1642436397333,43.83357173,140.81,140.69,8.69]
[1642436397833,43.83357173,140.81,140.72,10.6558]
[1642436398033,43.83357173,140.81,140.73,8.44]
[1642436398234,122.0,140.8,140.68,13.86246519]
[1642436398435,122.0,140.8,140.69,8.44]
[1642436398832,0.25,140.79,140.69,8.44]
[1642436399034,128.0,140.8,140.69,8.44]
[1642436399233,6.0,140.8,140.69,19.099]
[1642436399435,0.25,140.79,140.69,19.099]
[1642436399835,0.25,140.79,140.7,8.44]
[1642436400436,43.83357173,140.81,140.7,8.44]
[1642436400636,43.83357173,140.81,140.7,50.45057355]
[1642436400837,43.83357173,140.81,140.7,56.45057355]
[1642436401038,43.83357173,140.81,140.71,0.25]
[1642436401235,43.83357173,140.81,140.72,8.44]
[1642436401638,43.83357173,140.81,140.73,0.25]
[1642436401836,43.83357173,140.81,140.74,8.44]
[1642436402041,43.83357173,140.81,140.74,19.0936]
[1642436402239,43.83357173,140.81,140.75,0.25]
[1642436402437,48.601,140.89,140.76,8.44]
[1642436402838,22.6748,140.94,140.77,0.25]
[1642436403039,22.6748,140.94,140.8,81.0069]
[1642436403240,74.5563,140.95,140.81,8.69]
[1642436403439,43.56356904,140.94,140.82,41.11906622]
[1642436403640,43.56356904,140.94,140.83,78.8]
[1642436403841,43.56356904,140.94,140.83,87.06619958]
[1642436404039,39.30680029,141.06,140.85,70.36]
[1642436404240,39.30680029,141.06,140.86,53.57910128]
[1642436404440,39.30680029,141.06,140.87,70.36]
[1642436404643,39.30680029,141.06,140.88,8.44]
[1642436404842,39.30680029,141.06,140.89,38.98895848]
[1642436405040,39.30680029,141.06,140.91,10.6381]
[1642436405241,39.30680029,141.06,140.92,43.97329656]
[1642436405444,39.30680029,141.06,140.93,70.36]
[1642436405642,39.30680029,141.06,140.94,8.44]
[1642436405842,39.30680029,141.06,140.94,8.69]
[1642436406242,45.30680029,141.06,140.96,10.6364]
[1642436406443,45.30680029,141.06,140.96,19.0764]
[1642436406644,45.30680029,141.06,140.97,0.25]
[1642436407342,45.30680029,141.06,140.97,10.8878]
[1642436408342,45.30680029,141.06,140.97,8.44]
[1642436408542,45.30680029,141.06,140.92,8.44]
[1642436408742,1.75619958,141.05,140.92,8.44]
[1642436408943,1.75619958,141.05,140.92,19.0817]
[1642436409345,0.25,141.04,140.92,19.0817]
[1642436409946,10.6417,141.02,140.92,19.0817]
[1642436410348,0.25,141.01,140.92,19.0817]
[1642436410548,0.25,141.01,140.86,35.4765]
[1642436410549,2.00619958,141.01,140.86,35.4765]
[1642436410748,34.54036965,141.0,140.87,8.44]
[1642436410948,34.54036965,141.0,140.81,49.079458]
[1642436410949,36.29656923,141.0,140.85,8.44]
[1642436411150,10.6487,140.94,140.85,8.44]
[1642436411356,0.25,140.93,140.85,8.44]
[1642436411948,39.30680029,140.95,140.85,8.44]
[1642436412151,50.20330029,140.95,140.85,8.44]